fUST/lending_fUST_20240201
["ID","MTS","AMOUNT","RATE_DAILY","PERIOD"]
[313078439,1706725839039,-500.0,0.00019178,2]
[313078440,1706725839048,-500.0,0.00019178,2]
[313078441,1706725839057,-500.0,0.00019178,2]
[313078442,1706725839066,-500.0,0.00019178,2]
[313078443,1706725839075,-2305.06,0.00019178,2]
[313078444,1706725839084,-500.0,0.00019178,2]
[313078445,1706725839093,-500.0,0.00019178,2]
[313078446,1706725839102,-509.16728415,0.00019178,2]
[313078447,1706725839111,-568.35400767,0.00019178,2]
[313078448,1706725839120,-500.0,0.00019178,2]
[313078449,1706725839130,-1593.16,0.00019178,2]
[313078450,1706725839139,-500.0,0.00019178,2]
[313078451,1706725839148,-500.0,0.00019178,2]
[313078452,1706725839157,-500.0,0.00019178,2]
[313078453,1706725839167,-500.0,0.00019178,2]
[313078454,1706725839176,-8909.5,0.00019178,2]
[313078455,1706725839185,-500.0,0.00019178,2]
[313078456,1706725839195,-553.73391012,0.00019178,2]
[313078457,1706725839202,-500.0,0.00019178,2]
[313078458,1706725839212,-510.78,0.00019178,2]
[313078459,1706725839221,-905.66,0.00019178,2]
[313078460,1706725839230,-1339.73,0.00019178,2]
[313078461,1706725839241,-500.0,0.00019178,2]
[313078462,1706725839250,-518.62,0.00019178,2]
[313078463,1706725839259,-618.73,0.00019178,2]
[313078464,1706725839270,-2044.9,0.00019178,2]
[313078465,1706725839279,-500.0,0.00019178,2]
[313078466,1706725839289,-500.0,0.00019178,2]
[313078467,1706725839298,-500.0,0.00019178,2]
[313078468,1706725839307,-874.82,0.00019178,2]
[313078469,1706725839317,-3237.86,0.00019178,2]
[313078470,1706725839326,-12456.94,0.00019178,2]
[313078471,1706725839335,-500.0,0.00019178,2]
[313078472,1706725839343,-877.25,0.00019178,2]
[313078473,1706725839351,-500.0,0.00019178,2]
[313078474,1706725839360,-500.0,0.00019178,2]
[313078475,1706725839369,-500.0,0.00019178,2]
[313078476,1706725839377,-1253.81,0.00019178,2]
[313078477,1706725839386,-500.0,0.00019178,2]
[313078478,1706725839395,-1922.58,0.00019178,2]
[313078479,1706725839404,-500.0,0.00019178,2]
[313078480,1706725839415,-6524.56,0.00019178,2]
[313078481,1706725839425,-1076.2,0.00019178,2]
[313078482,1706725839434,-500.0,0.00019178,2]
[313078483,1706725839443,-500.0,0.00019178,2]
[313078484,1706725839452,-500.0,0.00019178,2]
[313078485,1706725839461,-500.0,0.00019178,2]
[313078486,1706725839470,-569.2,0.00019178,2]
[313078487,1706725839480,-732.7,0.00019178,2]
[313078488,1706725839489,-500.0,0.00019178,2]
[313078489,1706725839498,-1644.26,0.00019178,2]
[313078490,1706725839507,-2197.69,0.00019178,2]
[313078491,1706725839515,-500.0,0.00019178,2]
[313078492,1706725839524,-2777.5,0.00019178,2]
[313078493,1706725839533,-500.0,0.00019178,2]
[313078494,1706725839542,-500.0,0.00019178,2]
[313078495,1706725839551,-1166.69,0.00019178,2]
[313078496,1706725839560,-500.0,0.00019178,2]
[313078497,1706725839569,-500.0,0.00019178,2]
[313078498,1706725839580,-500.0,0.00019178,2]
[313078499,1706725839589,-453.08497735,0.00019178,2]
[313078500,1706725839598,-1069.24,0.00019178,2]
[313078501,1706725839607,-500.0,0.00019178,2]
[313078502,1706725839616,-500.0,0.00019178,2]
[313078503,1706725839627,-1012.19,0.00019178,2]
[313078504,1706725839637,-6347.91,0.00019178,2]
[313078505,1706725839646,-500.0,0.00019178,2]
[313078506,1706725839655,-862.47,0.00019178,2]
[313078507,1706725839666,-601.31,0.00019178,2]
[313078508,1706725839675,-166.109927,0.00019178,2]
[313078509,1706725839684,-280.0,0.0001931,2]
[313078510,1706725839693,-1000.0,0.00019381,2]
[313078511,1706725839703,-500.0,0.00019452,2]
[313078512,1706725839712,-500.0,0.00019452,2]
[313078513,1706725839721,-500.0,0.00019452,2]
[313078514,1706725839730,-1595.2,0.00019452,2]
[313078515,1706725839742,-500.0,0.00019452,2]
[313078516,1706725839751,-500.0,0.00019452,2]
[313078517,1706725839760,-373.70565358,0.00019452,2]
[313078518,1706725839769,-500.0,0.00019452,2]
[313078519,1706725839778,-909.23,0.00019452,2]
[313078520,1706725839788,-500.0,0.00019452,2]
[313078521,1706725839796,-500.0,0.00019452,2]
[313078522,1706725839805,-584.28,0.00019452,2]
[313078523,1706725839814,-500.0,0.00019452,2]
[313078524,1706725839823,-500.0,0.00019452,2]
[313078525,1706725839832,-500.0,0.00019452,2]
[313078526,1706725839841,-500.0,0.00019452,2]
[313078527,1706725839850,-662.81,0.00019452,2]
[313078528,1706725839859,-2491.9,0.00019452,2]
[313078529,1706725839868,-500.0,0.00019452,2]
[313078530,1706725839877,-500.0,0.00019452,2]
[313078531,1706725839885,-895.51,0.00019452,2]
[313078532,1706725839894,-500.0,0.00019452,2]
[313078533,1706725839903,-500.0,0.00019452,2]
[313078534,1706725839912,-1068.72,0.00019452,2]
[313078535,1706725839921,-511.52,0.00019452,2]
[313078536,1706725839930,-500.0,0.00019452,2]
[313078537,1706725839939,-2305.06,0.00019452,2]
[313078538,1706725839951,-560.68600045,0.00019452,2]
[313078539,1706725839960,-500.0,0.00019452,2]
[313078540,1706725839969,-1593.16,0.00019452,2]
[313078541,1706725839978,-500.0,0.00019452,2]
[313078542,1706725839987,-500.0,0.00019452,2]
[313078543,1706725839996,-8909.5,0.00019452,2]
[313078544,1706725840005,-500.0,0.00019452,2]
[313078545,1706725840014,-500.0,0.00019452,2]
[313078546,1706725840024,-510.78,0.00019452,2]
[313078547,1706725840034,-905.66,0.00019452,2]
[313078548,1706725840044,-1339.73,0.00019452,2]
[313078549,1706725840053,-500.0,0.00019452,2]
[313078550,1706725840062,-518.62,0.00019452,2]
[313078551,1706725840072,-618.73,0.00019452,2]
[313078552,1706725840081,-500.0,0.00019452,2]
[313078553,1706725840090,-500.0,0.00019452,2]
[313078554,1706725840099,-874.82,0.00019452,2]
[313078555,1706725840108,-3237.86,0.00019452,2]
[313078556,1706725840116,-12456.94,0.00019452,2]
[313078557,1706725840213,-424.25997704,0.00019452,2]
[313078558,1706725840223,-877.25,0.00019452,2]
[313078559,1706725840232,-500.0,0.00019452,2]
[313078560,1706725840242,-500.0,0.00019452,2]
[313078561,1706725840251,-500.0,0.00019452,2]
[313078562,1706725840260,-1253.81,0.00019452,2]
[313078563,1706725840269,-500.0,0.00019452,2]
[313078564,1706725840278,-1922.58,0.00019452,2]
[313078565,1706725840287,-6524.56,0.00019452,2]
[313078566,1706725840296,-1076.2,0.00019452,2]
[313078567,1706725840305,-250.07075875,0.00019452,2]
[313078568,1706725840314,-500.0,0.00019452,2]
[313078569,1706725840322,-500.0,0.00019452,2]
[313078570,1706725840331,-500.0,0.00019452,2]
[313078571,1706725840340,-569.2,0.00019452,2]
[313078572,1706725840349,-732.7,0.00019452,2]
[313078573,1706725840358,-500.0,0.00019452,2]
[313078574,1706725840366,-1644.26,0.00019452,2]
[313078575,1706725840375,-2197.69,0.00019452,2]
[313078576,1706725840384,-500.0,0.00019452,2]
[313078577,1706725840392,-2777.5,0.00019452,2]
[313078578,1706725840401,-500.0,0.00019452,2]
[313078579,1706725840411,-500.0,0.00019452,2]
[313078580,1706725840420,-1166.69,0.00019452,2]
[313078581,1706725840428,-500.0,0.00019452,2]
[313078582,1706725840436,-500.0,0.00019452,2]
[313078583,1706725840444,-1069.24,0.00019452,2]
[313078584,1706725840454,-500.0,0.00019452,2]
[313078585,1706725840465,-500.0,0.00019452,2]
[313078586,1706725840473,-1012.19,0.00019452,2]
[313078587,1706725840482,-6347.91,0.00019452,2]
[313078588,1706725840491,-862.47,0.00019452,2]
[313078589,1706725840501,-601.31,0.00019452,2]
[313078590,1706725840511,-153.0,0.00019452,2]
[313078591,1706725840522,-153.0,0.00019478,2]
[313078592,1706725840531,-1000.0300009,0.00019632,2]
[313078593,1706725840541,-500.0,0.00019726,2]
[313078594,1706725840550,-500.0,0.00019726,2]
[313078595,1706725840559,-500.0,0.00019726,2]
[313078596,1706725840568,-1595.2,0.00019726,2]
[313078597,1706725840578,-500.0,0.00019726,2]
[313078598,1706725840588,-500.0,0.00019726,2]
[313078599,1706725840597,-500.0,0.00019726,2]
[313078600,1706725840606,-909.23,0.00019726,2]
[313078601,1706725840616,-500.0,0.00019726,2]
[313078603,1706725840625,-500.0,0.00019726,2]
[313078604,1706725840634,-584.28,0.00019726,2]
[313078607,1706725840644,-500.0,0.00019726,2]
[313078609,1706725840653,-500.0,0.00019726,2]
[313078611,1706725840663,-500.0,0.00019726,2]
[313078612,1706725840672,-186.8035473,0.00019726,2]
[313078613,1706725840681,-662.81,0.00019726,2]
[313078614,1706725840690,-2491.9,0.00019726,2]
[313078616,1706725840698,-500.0,0.00019726,2]
[313078617,1706725840707,-895.51,0.00019726,2]
[313078619,1706725840715,-423.32,0.00019726,2]
[313078620,1706725840724,-1068.72,0.00019726,2]
[313078621,1706725840733,-511.52,0.00019726,2]
[313078622,1706725840742,-500.0,0.00019726,2]
[313078623,1706725840751,-2305.06,0.00019726,2]
[313078624,1706725840760,-500.0,0.00019726,2]
[313078625,1706725840769,-1593.16,0.00019726,2]
[313078626,1706725840778,-331.03874954,0.00019726,2]
[313078627,1706725840787,-8909.5,0.00019726,2]
[313078628,1706725840796,-500.0,0.00019726,2]
[313078629,1706725840805,-510.78,0.00019726,2]
[313078630,1706725840814,-905.66,0.00019726,2]
[313078631,1706725840823,-1339.73,0.00019726,2]
[313078632,1706725840831,-500.0,0.00019726,2]
[313078633,1706725840842,-518.62,0.00019726,2]
[313078634,1706725840851,-618.73,0.00019726,2]
[313078635,1706725840860,-500.0,0.00019726,2]
[313078636,1706725840869,-500.0,0.00019726,2]
[313078637,1706725840878,-874.82,0.00019726,2]
[313078638,1706725840888,-3237.86,0.00019726,2]
[313078639,1706725840896,-12456.94,0.00019726,2]
[313078640,1706725840905,-877.25,0.00019726,2]
[313078641,1706725840915,-500.0,0.00019726,2]
[313078642,1706725840924,-500.0,0.00019726,2]
[313078643,1706725840933,-500.0,0.00019726,2]
[313078644,1706725840945,-1253.81,0.00019726,2]
[313078645,1706725840953,-500.0,0.00019726,2]
[313078646,1706725840962,-1922.58,0.00019726,2]
[313078647,1706725840971,-6524.56,0.00019726,2]
[313078648,1706725840980,-1076.2,0.00019726,2]
[313078649,1706725840990,-500.0,0.00019726,2]
[313078650,1706725840999,-500.0,0.00019726,2]
[313078651,1706725841008,-500.0,0.00019726,2]
[313078652,1706725841017,-569.2,0.00019726,2]
[313078653,1706725841029,-732.7,0.00019726,2]
[313078654,1706725841039,-500.0,0.00019726,2]
[313078655,1706725841048,-1644.26,0.00019726,2]
[313078656,1706725841057,-2197.69,0.00019726,2]
[313078657,1706725841067,-500.0,0.00019726,2]
[313078658,1706725841076,-2777.5,0.00019726,2]
[313078659,1706725841085,-500.0,0.00019726,2]
[313078661,1706725841094,-500.49854135,0.00019726,2]
[313078662,1706725841103,-1166.69,0.00019726,2]
[313078663,1706725841112,-500.0,0.00019726,2]
[313078664,1706725841121,-500.0,0.00019726,2]
[313078666,1706725841130,-1069.24,0.00019726,2]
[313078668,1706725841139,-500.0,0.00019726,2]
[313078670,1706725841148,-500.0,0.00019726,2]
[313078672,1706725841158,-1012.19,0.00019726,2]
[313078675,1706725841167,-6347.91,0.00019726,2]
[313078676,1706725841176,-862.47,0.00019726,2]
[313078678,1706725841186,-601.31,0.00019726,2]
[313078680,1706725841196,-155.00465014,0.0002,2]
[313078682,1706725841205,-1200.08348294,0.0002,2]
[313078684,1706725841214,-500.0,0.0002,2]
[313078685,1706725841224,-178.21239998,0.0002,2]
[313078686,1706725841233,-2087.09739776,0.0002,2]
[313078687,1706725841243,-44380.68568654,0.0002,2]
[313078688,1706725841252,-323.57048434,0.0002,2]
[313078689,1706725841261,-300.0,0.0002,2]
[313078690,1706725841270,-200.0,0.0002,2]
[313078691,1706725841279,-679.86163762,0.0002,2]
[313078692,1706725841288,-155.01860223,0.0002,2]
[313078693,1706725841296,-500.0,0.0002,2]
[313078694,1706725841305,-1595.2,0.0002,2]
[313078695,1706725841315,-500.0,0.0002,2]
[313078696,1706725841324,-500.0,0.0002,2]
[313078697,1706725841333,-500.0,0.0002,2]
[313078698,1706725841341,-909.23,0.0002,2]
[313078699,1706725841351,-500.0,0.0002,2]
[313078700,1706725841360,-500.0,0.0002,2]
[313078701,1706725841369,-584.28,0.0002,2]
[313078702,1706725841378,-500.0,0.0002,2]
[313078703,1706725841387,-500.0,0.0002,2]
[313078704,1706725841396,-500.0,0.0002,2]
[313078705,1706725841406,-662.81,0.0002,2]
[313078706,1706725841416,-2491.9,0.0002,2]
[313078707,1706725841425,-500.0,0.0002,2]
[313078708,1706725841434,-895.51,0.0002,2]
[313078709,1706725841443,-1068.72,0.0002,2]
[313078710,1706725841452,-511.52,0.0002,2]
[313078711,1706725841461,-500.0,0.0002,2]
[313078712,1706725841470,-2305.06,0.0002,2]
[313078713,1706725841479,-500.0,0.0002,2]
[313078714,1706725841488,-1593.16,0.0002,2]
[313078715,1706725841497,-8909.5,0.0002,2]
[313078716,1706725841507,-500.0,0.0002,2]
[313078717,1706725841516,-510.78,0.0002,2]
[313078718,1706725841525,-905.66,0.0002,2]
[313078719,1706725841534,-500.0,0.0002,2]
[313078720,1706725841543,-518.62,0.0002,2]
[313078722,1706725841552,-1339.73,0.0002,2]
[313078724,1706725841561,-618.73,0.0002,2]
[313078726,1706725841571,-500.0,0.0002,2]
[313078728,1706725841579,-500.0,0.0002,2]
[313078729,1706725841588,-874.82,0.0002,2]
[313078731,1706725841597,-3237.86,0.0002,2]
[313078732,1706725841606,-12456.94,0.0002,2]
[313078733,1706725841615,-877.25,0.0002,2]
[313078734,1706725841624,-500.0,0.0002,2]
[313078736,1706725841632,-372.95353061,0.0002,2]
[313078738,1706725841641,-500.0,0.0002,2]
[313078740,1706725841650,-1253.81,0.0002,2]
[313078742,1706725841660,-500.0,0.0002,2]
[313078743,1706725841670,-1922.58,0.0002,2]
[313078744,1706725841679,-6524.56,0.0002,2]
[313078745,1706725841688,-1076.2,0.0002,2]
[313078746,1706725841697,-500.0,0.0002,2]
[313078747,1706725841706,-500.0,0.0002,2]
[313078748,1706725841715,-500.0,0.0002,2]
[313078749,1706725841724,-569.2,0.0002,2]
[313078751,1706725841732,-732.7,0.0002,2]
[313078752,1706725841742,-500.0,0.0002,2]
[313078753,1706725841750,-1644.26,0.0002,2]
[313078754,1706725841758,-2197.69,0.0002,2]
[313078755,1706725841767,-500.0,0.0002,2]
[313078756,1706725841776,-2777.5,0.0002,2]
[313078757,1706725841785,-500.0,0.0002,2]
[313078758,1706725841794,-1166.69,0.0002,2]
[313078759,1706725841803,-500.0,0.0002,2]
[313078760,1706725841813,-500.0,0.0002,2]
[313078761,1706725841822,-1069.24,0.0002,2]
[313078762,1706725841831,-500.0,0.0002,2]
[313078763,1706725841840,-500.0,0.0002,2]
[313078764,1706725841849,-1012.19,0.0002,2]
[313078765,1706725841858,-6347.91,0.0002,2]
[313078766,1706725841867,-862.47,0.0002,2]
[313078767,1706725841876,-601.31,0.0002,2]
[313078768,1706725841886,-155.03100347,0.00020009,2]
[313078769,1706725841897,-39138.2841979,0.0002001,2]
[313078770,1706725841907,-155.04960279,0.00020273,2]
[313078771,1706725841919,-243.43578923,0.00020273,2]
[313078772,1706725841928,-1595.2,0.00020273,2]
[313078773,1706725841938,-500.0,0.00020273,2]
[313078774,1706725841950,-500.0,0.00020273,2]
[313078775,1706725841959,-500.0,0.00020273,2]
[313078776,1706725841969,-909.23,0.00020273,2]
[313078777,1706725841979,-500.0,0.00020273,2]
[313078778,1706725841989,-500.0,0.00020273,2]
[313078779,1706725841998,-584.28,0.00020273,2]
[313078780,1706725842086,-500.0,0.00020273,2]
[313078781,1706725842096,-500.0,0.00020273,2]
[313078782,1706725842105,-500.0,0.00020273,2]
[313078783,1706725842114,-662.81,0.00020273,2]
[313078784,1706725842123,-2491.9,0.00020273,2]
[313078785,1706725842133,-500.0,0.00020273,2]
[313078786,1706725842142,-895.51,0.00020273,2]
[313078787,1706725842151,-1068.72,0.00020273,2]
[313078788,1706725842161,-511.52,0.00020273,2]
[313078789,1706725842170,-500.0,0.00020273,2]
[313078790,1706725842180,-2305.06,0.00020273,2]
[313078791,1706725842189,-500.0,0.00020273,2]
[313078792,1706725842198,-1593.16,0.00020273,2]
[313078793,1706725842208,-8909.5,0.00020273,2]
[313078794,1706725842217,-258.58735297,0.00020273,2]
[313078795,1706725842226,-510.78,0.00020273,2]
[313078796,1706725842234,-905.66,0.00020273,2]
[313078797,1706725842243,-500.0,0.00020273,2]
[313078798,1706725842253,-518.62,0.00020273,2]
[313078799,1706725842262,-1339.73,0.00020273,2]
[313078800,1706725842271,-618.73,0.00020273,2]
[313078801,1706725842280,-500.0,0.00020273,2]
[313078802,1706725842290,-500.0,0.00020273,2]
[313078803,1706725842299,-3237.86,0.00020273,2]
[313078804,1706725842308,-874.82,0.00020273,2]
[313078805,1706725842317,-12456.94,0.00020273,2]
[313078806,1706725842326,-877.25,0.00020273,2]
[313078807,1706725842335,-500.0,0.00020273,2]
[313078808,1706725842344,-500.0,0.00020273,2]
[313078809,1706725842353,-1253.81,0.00020273,2]
[313078810,1706725842362,-500.0,0.00020273,2]
[313078811,1706725842371,-1922.58,0.00020273,2]
[313078812,1706725842380,-6524.56,0.00020273,2]
[313078813,1706725842389,-1076.2,0.00020273,2]
[313078814,1706725842398,-500.0,0.00020273,2]
[313078815,1706725842407,-500.0,0.00020273,2]
[313078816,1706725842418,-500.0,0.00020273,2]
[313078817,1706725842427,-569.2,0.00020273,2]
[313078818,1706725842437,-732.7,0.00020273,2]
[313078819,1706725842446,-500.0,0.00020273,2]
[313078820,1706725842455,-1644.26,0.00020273,2]
[313078821,1706725842464,-2197.69,0.00020273,2]
[313078822,1706725842473,-500.0,0.00020273,2]
[313078823,1706725842483,-2777.5,0.00020273,2]
[313078824,1706725842492,-500.0,0.00020273,2]
[313078825,1706725842501,-1166.69,0.00020273,2]
[313078826,1706725842511,-500.0,0.00020273,2]
[313078827,1706725842520,-1069.24,0.00020273,2]
[313078828,1706725842529,-500.0,0.00020273,2]
[313078829,1706725842539,-296.71682223,0.00020273,2]
[313078830,1706725842549,-1012.19,0.00020273,2]
[313078831,1706725842558,-6347.91,0.00020273,2]
[313078832,1706725842567,-862.47,0.00020273,2]
[313078833,1706725842576,-601.31,0.00020273,2]
[313078834,1706725842585,-3000.85,0.0002045,2]
[313078835,1706725842594,-1996.50298693,0.00020544,2]
[313078836,1706725842605,-10555.9279154,0.00020545,2]
[313078837,1706725842615,-8120.904127,0.00020545,2]
[313078838,1706725842624,-1595.2,0.00020547,2]
[313078839,1706725842634,-500.0,0.00020547,2]
[313078840,1706725842643,-500.0,0.00020547,2]
[313078841,1706725842652,-500.0,0.00020547,2]
[313078842,1706725842661,-909.23,0.00020547,2]
[313078843,1706725842670,-310.15523794,0.00020547,2]
[313078844,1706725842679,-500.0,0.00020547,2]
[313078845,1706725842689,-584.28,0.00020547,2]
[313078846,1706725842698,-500.0,0.00020547,2]
[313078847,1706725842707,-500.0,0.00020547,2]
[313078848,1706725842716,-662.81,0.00020547,2]
[313078849,1706725842725,-2491.9,0.00020547,2]
[313078850,1706725842735,-500.0,0.00020547,2]
[313078851,1706725842746,-895.51,0.00020547,2]
[313078852,1706725842755,-1068.72,0.00020547,2]
[313078853,1706725842763,-511.52,0.00020547,2]
[313078854,1706725842771,-500.0,0.00020547,2]
[313078855,1706725842781,-2305.06,0.00020547,2]
[313078856,1706725842790,-500.0,0.00020547,2]
[313078857,1706725842799,-1593.16,0.00020547,2]
[313078858,1706725842808,-8909.5,0.00020547,2]
[313078859,1706725842817,-510.78,0.00020547,2]
[313078860,1706725842827,-905.66,0.00020547,2]
[313078861,1706725842837,-500.0,0.00020547,2]
[313078862,1706725842846,-518.62,0.00020547,2]
[313078863,1706725842855,-1339.73,0.00020547,2]
[313078864,1706725842864,-618.73,0.00020547,2]
[313078865,1706725842873,-500.0,0.00020547,2]
[313078866,1706725842882,-500.0,0.00020547,2]
[313078867,1706725842891,-3237.86,0.00020547,2]
[313078868,1706725842900,-874.82,0.00020547,2]
[313078869,1706725842909,-12456.94,0.00020547,2]
[313078870,1706725842919,-877.25,0.00020547,2]
[313078871,1706725842927,-500.0,0.00020547,2]
[313078872,1706725842937,-500.0,0.00020547,2]
[313078873,1706725842949,-1253.81,0.00020547,2]
[313078874,1706725842958,-1922.58,0.00020547,2]
[313078875,1706725842967,-500.0,0.00020547,2]
[313078876,1706725842977,-5684.37702222,0.00020547,2]
[313078877,1706725842994,-840.18297778,0.00020547,2]
[313078878,1706725843003,-1076.2,0.00020547,2]
[313078879,1706725843012,-500.0,0.00020547,2]
[313078880,1706725843022,-387.2817961,0.00020547,2]
[313078881,1706725843196,155.01550155,0.0001656,3]
[313078882,1706725843336,-780.90578238,0.00019442,3]
[313078883,1706725843350,-6869.11487117,0.00019442,3]
[313078884,1706725843363,-1279.98934645,0.00019442,3]
[313078885,1706725843372,-112.7182039,0.00020547,2]
[313078886,1706725843382,-500.0,0.00020547,2]
[313078887,1706725843391,-569.2,0.00020547,2]
[313078888,1706725843400,-732.7,0.00020547,2]
[313078889,1706725843409,-500.0,0.00020547,2]
[313078890,1706725843419,-1644.26,0.00020547,2]
[313078891,1706725843428,-2197.69,0.00020547,2]
[313078892,1706725843437,-500.0,0.00020547,2]
[313078893,1706725843446,-2777.5,0.00020547,2]
[313078894,1706725843455,-1166.69,0.00020547,2]
[313078895,1706725843464,-539.61078944,0.00020547,2]
[313078896,1706725843474,-1069.24,0.00020547,2]
[313078897,1706725843483,-500.0,0.00020547,2]
[313078898,1706725843492,-1012.19,0.00020547,2]
[313078899,1706725843502,-6347.91,0.00020547,2]
[313078900,1706725843512,-862.47,0.00020547,2]
[313078901,1706725843522,-601.31,0.00020547,2]
[313078902,1706725843531,-153.0,0.00020548,2]
[313078903,1706725843541,-664.80440855,0.00020815,2]
[313078904,1706725843551,-1595.2,0.00020821,2]
[313078905,1706725843561,-500.0,0.00020821,2]
[313078906,1706725843570,-500.0,0.00020821,2]
[313078907,1706725843580,-909.23,0.00020821,2]
[313078908,1706725843590,-500.0,0.00020821,2]
[313078909,1706725843599,-584.28,0.00020821,2]
[313078910,1706725843610,-500.0,0.00020821,2]
[313078911,1706725843619,-232.99081434,0.00020821,2]
[313078912,1706725843628,-151.0,0.00020821,2]
[313078913,1706725843637,-662.81,0.00020821,2]
[313078914,1706725843646,-2491.9,0.00020821,2]
[313078915,1706725843656,-500.0,0.00020821,2]
[313078916,1706725843665,-895.51,0.00020821,2]
[313078917,1706725843674,-252.180689,0.00020821,2]
[313078918,1706725843684,-252.180689,0.00020821,2]
[313078919,1706725843693,-1068.72,0.00020821,2]
[313078920,1706725843702,-511.52,0.00020821,2]
[313078921,1706725843711,-2305.06,0.00020821,2]
[313078922,1706725843721,-500.0,0.00020821,2]
[313078923,1706725843730,-1593.16,0.00020821,2]
[313078924,1706725843739,-8909.5,0.00020821,2]
[313078925,1706725843748,-510.78,0.00020821,2]
[313078926,1706725843820,-905.66,0.00020821,2]
[313078927,1706725843838,-500.0,0.00020821,2]
[313078928,1706725843849,-518.62,0.00020821,2]
[313078929,1706725843858,-1339.73,0.00020821,2]
[313078930,1706725843868,-197.159883,0.00020821,2]
[313078931,1706725843877,-618.73,0.00020821,2]
[313078932,1706725843886,-197.159883,0.00020821,2]
[313078933,1706725843896,-500.0,0.00020821,2]
[313078934,1706725843906,-500.0,0.00020821,2]
[313078935,1706725843916,-874.82,0.00020821,2]
[313078937,1706725843926,-3237.86,0.00020821,2]
[313078939,1706725843935,-7008.43893599,0.00020821,2]
[313078940,1706725843953,-5448.50106401,0.00020821,2]
[313078941,1706725843962,-877.25,0.00020821,2]
[313078942,1706725843972,-151.0,0.00020821,2]
[313078943,1706725843982,-500.0,0.00020821,2]
[313078944,1706725843992,-1253.81,0.00020821,2]
[313078945,1706725844001,-500.0,0.00020821,2]
[313078946,1706725844012,-1269.43893599,0.00020821,2]
[313078947,1706725844027,-653.14106401,0.00020821,2]
[313078949,1706725844037,-6524.56,0.00020821,2]
[313078950,1706725844047,-1076.2,0.00020821,2]
[313078951,1706725844056,-500.0,0.00020821,2]
[313078952,1706725844067,-500.0,0.00020821,2]
[313078953,1706725844075,-500.0,0.00020821,2]
[313078954,1706725844086,-569.2,0.00020821,2]
[313078955,1706725844095,-732.7,0.00020821,2]
[313078956,1706725844105,-347.53312367,0.00020821,2]
[313078957,1706725844115,-1876.74283,0.00020821,2]
[313078958,1706725844124,-1644.26,0.00020821,2]
[313078960,1706725844134,-1876.74283,0.00020821,2]
[313078962,1706725844143,-2197.69,0.00020821,2]
[313078965,1706725844152,-507.41983095,0.00020821,2]
[313078967,1706725844161,-2229.17726924,0.00020821,2]
[313078968,1706725844173,-548.32273076,0.00020821,2]
[313078969,1706725844182,-1166.69,0.00020821,2]
[313078970,1706725844191,-1069.24,0.00020821,2]
[313078971,1706725844201,-500.0,0.00020821,2]
[313078972,1706725844210,-79.46380922,0.00020821,2]
[313078973,1706725844221,-932.72619078,0.00020821,2]
[313078974,1706725844230,-6347.91,0.00020821,2]